bitfinex-derivatives/quotes_SOLF0:USTF0_20241017
["timestamp","ask_amount","ask_price","bid_price","bid_amount"]
[1729166319909,4.88,151.46,151.4,6.67795683]
[1729166319910,10.14,151.44,151.42,3.3027]
[1729166320518,10.14,151.44,151.38,15.02]
[1729166320711,13.4425,151.44,151.41,3.303]
[1729166320913,13.4425,151.44,151.41,6.67488386]
[1729166321112,13.4425,151.44,151.41,3.303]
[1729166321817,13.4425,151.44,151.41,6.66299009]
[1729166322015,13.4425,151.44,151.41,3.303]
[1729166322716,13.4425,151.44,151.41,6.58501981]
[1729166324215,10.14,151.43,151.41,6.58501981]
[1729166339823,3.3025,151.44,151.41,6.58501981]
[1729166340029,13.4425,151.44,151.41,6.58501981]
[1729166340531,3.3025,151.44,151.41,6.58501981]
[1729166340739,13.4425,151.44,151.41,6.58501981]
[1729166342528,13.4424,151.44,151.42,3.3028]
[1729166342728,13.4424,151.44,151.41,3.28201981]
[1729166342926,13.4424,151.44,151.39,15.02]
[1729166343129,13.4424,151.44,151.41,3.303]
[1729166343332,13.4424,151.44,151.41,6.61552655]
[1729166343532,13.4424,151.44,151.41,3.303]
[1729166344125,13.4424,151.44,151.41,6.65946452]
[1729166353636,10.14,151.43,151.41,6.65946452]
[1729166362839,13.4424,151.44,151.41,6.65946452]
[1729166368254,13.4428,151.42,151.41,3.35646452]
[1729166368546,13.4428,151.42,151.39,3.3034]
[1729166368741,10.14,151.4,151.39,3.3034]
[1729166368945,10.14,151.4,151.39,11.07526905]
[1729166369246,10.14,151.4,151.39,7.76979201]
[1729166369851,10.14,151.4,151.39,11.00841529]
[1729166370147,10.14,151.4,151.39,6.54202328]
[1729166370449,10.14,151.4,151.39,11.00995538]
[1729166372041,10.14,151.4,151.39,6.54202328]
[1729166372242,10.14,151.4,151.39,11.0125864]
[1729166372944,3.3028,151.42,151.39,11.0125864]
[1729166372945,7.7537,151.47,151.39,3.23862328]
[1729166373154,7.7537,151.47,151.41,3.303]
[1729166373357,10.14,151.43,151.42,3.3224368]
[1729166373747,13.4426,151.43,151.4,3.3032]
[1729166373946,13.4426,151.43,151.4,6.58895583]
[1729166375658,3.3029,151.42,151.4,6.58905583]
[1729166376555,13.4427,151.43,151.4,6.58905583]
[1729166378459,7.7537,151.47,151.4,3.28575583]
[1729166378661,10.14,151.43,151.41,3.3029]
[1729166378858,10.14,151.43,151.42,3.29292125]
[1729166379156,13.4426,151.43,151.42,3.29292125]
[1729166379358,10.14,151.43,151.4,3.3033]
[1729166379961,10.14,151.43,151.4,6.63322779]
[1729166380460,13.4429,151.42,151.4,3.32992779]
[1729166380659,13.4429,151.42,151.39,3.3034]
[1729166380857,10.14,151.41,151.39,3.37023848]
[1729166381064,10.14,151.4,151.35,90.40945306]
[1729166381258,10.14,151.37,151.36,4.47401648]
[1729166381455,10.14,151.37,151.29,4.88]
[1729166381456,3.3045,151.35,151.29,4.88]
[1729166381651,10.14,151.32,151.3,3.3053]
[1729166382360,10.14,151.32,151.31,3.3053]
[1729166382864,10.14,151.33,151.31,3.3053]
[1729166383063,10.14,151.33,151.31,6.62133853]
[1729166383264,10.14,151.33,151.31,3.3053]
[1729166383863,10.14,151.33,151.31,6.56646241]
[1729166385461,10.14,151.33,151.32,3.305]
[1729166386962,3.3045,151.35,151.32,3.305]
[1729166387164,10.14,151.34,151.32,3.305]
[1729166391571,10.14,151.34,151.31,3.26116241]
[1729166391770,4.88,151.38,151.33,3.3047]
[1729166391771,10.14,151.36,151.33,3.3047]
[1729166392175,10.14,151.36,151.34,3.3045]
[1729166392967,1.3688,151.39,151.35,3.3044]
[1729166392968,10.14,151.39,151.35,3.3044]
[1729166393166,10.14,151.39,151.34,10.14]
[1729166393371,10.14,151.39,151.34,13.50474182]
[1729166393674,13.4436,151.39,151.36,3.3041]
[1729166397078,10.14,151.37,151.35,3.3042]
[1729166397278,10.14,151.36,151.33,4.88]
[1729166397475,10.14,151.36,151.33,8.19417049]
[1729166397868,10.14,151.36,151.34,3.3045]
[1729166399261,10.14,151.36,151.33,11.49877049]
[1729166399262,10.14,151.35,151.33,11.49877049]
[1729166399468,10.14,151.35,151.33,8.19417049]
[1729166400377,3.304,151.37,151.34,3.3046]
[1729166400675,13.444,151.37,151.34,3.3046]
[1729166402072,10.14,151.37,151.33,8.19417049]
[1729166402269,10.14,151.37,151.35,3.3044]
[1729166403371,10.14,151.37,151.33,8.19417049]
[1729166403578,13.4436,151.39,151.36,3.304]
[1729166405378,13.4437,151.39,151.36,3.304]
[1729166406077,10.14,151.39,151.33,18.33417049]
[1729166406282,3.3039,151.38,151.35,3.3042]
[1729166406783,3.3039,151.38,151.36,3.3041]
[1729166407983,3.3032,151.41,151.38,3.3035]
[1729166408282,10.14,151.41,151.35,10.14]
[1729166408484,13.4431,151.41,151.35,10.14]
[1729166408874,13.4431,151.41,151.34,2.7086]
[1729166408875,1.4552,151.44,151.37,10.14]
[1729166409072,1.4552,151.44,151.38,10.14]
[1729166409280,4.86,151.45,151.39,10.14]
[1729166409476,3.3026,151.44,151.39,10.14]
[1729166409881,10.14,151.42,151.37,4.86]
[1729166410086,10.14,151.42,151.35,1.3645]
[1729166410087,10.14,151.4,151.35,1.3645]
[1729166410272,10.14,151.38,151.34,2.7086]
[1729166411080,10.14,151.38,151.35,3.3042]
[1729166411479,13.4441,151.37,151.34,3.3045]
[1729166411884,10.14,151.38,151.33,8.17417049]
[1729166412179,10.14,151.38,151.36,3.304]
[1729166412981,10.14,151.38,151.34,10.14]
[1729166413787,10.14,151.38,151.36,3.304]
[1729166413986,10.14,151.39,151.35,10.14]
[1729166414183,10.14,151.39,151.38,3.3037]
[1729166414384,15.0,151.42,151.37,10.14]
[1729166414580,15.0,151.44,151.38,10.14]
[1729166414977,3.3028,151.43,151.39,3.3033]
[1729166415178,10.14,151.42,151.39,3.3033]
[1729166415378,10.14,151.41,151.38,3.3037]
[1729166415578,10.14,151.39,151.33,8.17417049]
[1729166415776,10.14,151.37,151.33,8.17417049]
[1729166416081,10.14,151.39,151.33,18.31417049]
[1729166416281,10.14,151.35,151.33,3.3046]
[1729166416478,4.86,151.4,151.23,4.1579]
[1729166416479,10.14,151.34,151.28,15.0]
[1729166416684,10.14,151.29,151.23,1.3529]
[1729166416893,4.86,151.29,151.11,15.95019839]
[1729166417185,4.86,151.29,151.18,10.14]
[1729166417186,4.0849,151.28,151.18,10.14]
[1729166417410,4.0849,151.28,151.13,2.894]
[1729166417411,10.14,151.24,151.2,3.3076]
[1729166417580,10.14,151.24,151.2,6.66671777]
[1729166417782,10.14,151.25,151.2,3.3076]
[1729166417981,10.14,151.25,151.2,6.53287781]
[1729166418483,4.0849,151.28,151.2,3.22527781]
[1729166418685,10.14,151.25,151.21,10.14]
[1729166418887,10.14,151.27,151.21,10.14]
[1729166419189,10.14,151.27,151.22,10.14]
[1729166419388,10.14,151.28,151.22,10.14]
[1729166419687,10.14,151.28,151.23,10.14]
[1729166419896,10.14,151.28,151.2,9.0646]
[1729166419897,4.86,151.29,151.22,15.87]
[1729166420591,4.86,151.29,151.24,3.3066]
[1729166420895,4.86,151.29,151.22,15.87]
[1729166421194,4.86,151.29,151.2,12.41921972]
[1729166421779,15.87,151.28,151.2,11.08361972]
[1729166421984,17.2232,151.28,151.2,11.08361972]
[1729166422493,17.2232,151.28,151.2,14.39111972]
[1729166422494,3.3067,151.25,151.2,14.39111972]
[1729166422689,3.3067,151.25,151.2,11.08361972]
[1729166423494,4.88,151.25,151.2,3.35461972]
[1729166423689,4.88,151.25,151.17,4.88]
[1729166423888,4.88,151.25,151.2,3.3076]
[1729166424090,8.1867,151.25,151.2,6.56112717]
[1729166424795,8.1867,151.25,151.2,3.25352717]
[1729166425099,8.1867,151.25,151.21,3.3074]
[1729166425287,8.1867,151.25,151.21,6.66389573]
[1729166426292,8.1864,151.26,151.22,3.3072]
[1729166426487,4.88,151.29,151.2,15.87]
[1729166426891,3.3059,151.29,151.24,3.3066]
[1729166427100,8.1859,151.29,151.24,3.3066]
[1729166427594,8.1859,151.29,151.21,4.88]
[1729166428099,8.1859,151.29,151.24,3.3066]
[1729166428793,8.1859,151.29,151.25,3.3065]
[1729166428994,3.3054,151.31,151.24,15.87]
[1729166429297,8.1854,151.31,151.24,15.87]
[1729166429691,8.1854,151.31,151.27,3.306]
[1729166430498,4.88,151.31,151.24,15.87]
[1729166430693,4.88,151.31,151.28,3.3058]
[1729166431397,4.88,151.31,151.28,6.57167819]
[1729166432302,4.88,151.31,151.29,3.3057]
[1729166433192,20.0234,151.34,151.09,6.6199]
[1729166433193,15.87,151.3,151.09,6.6199]
[1729166433403,15.87,151.27,151.17,15.87]
[1729166433704,8.1865,151.26,151.21,3.3073]
[1729166433902,15.87,151.27,151.17,19.10710831]
[1729166434094,4.88,151.26,151.17,19.10710831]
[1729166434396,4.88,151.26,151.22,3.3071]
[1729166434905,4.88,151.26,151.18,6.3347]
[1729166435602,8.1863,151.26,151.18,6.3347]
[1729166436300,24.0562,151.27,151.18,6.3347]
[1729166436492,20.75,151.27,151.19,1.3778]
[1729166436795,20.75,151.27,151.21,3.3073]
[1729166436995,3.3064,151.26,151.21,3.3073]
[1729166438505,3.3064,151.26,151.19,1.3778]
[1729166438703,3.3064,151.26,151.22,3.3072]
[1729166439293,20.75,151.27,151.19,1.3778]
[1729166439503,20.75,151.27,151.19,3.3077]
[1729166441505,15.87,151.25,151.18,1.4547]
[1729166441810,15.87,151.25,151.18,3.3081]
[1729166442401,3.3074,151.22,151.18,3.3081]
[1729166442704,3.3074,151.22,151.17,8.13710831]
[1729166442705,4.9,151.23,151.17,6.54530831]
[1729166442905,3.3075,151.21,151.17,6.54530831]
[1729166443103,4.9,151.23,151.17,3.23710831]
[1729166443403,3.3078,151.2,151.15,6.2367]
[1729166443804,3.3078,151.2,151.16,3.3084]
[1729166444009,3.3079,151.19,151.16,6.57236725]
[1729166444602,3.3079,151.19,151.16,3.26396725]
[1729166444803,3.3079,151.19,151.15,4.6454]
[1729166445306,3.3079,151.19,151.15,6.68340648]
[1729166445506,3.3079,151.19,151.15,3.37480648]
[1729166445705,3.3079,151.19,151.14,91.85622835]
[1729166445706,20.77,151.23,151.14,107.72622835]
[1729166446116,20.77,151.23,151.14,111.08647684]
[1729166446411,3.3073,151.22,151.19,3.3078]
[1729166447813,20.79,151.23,151.14,111.08647684]
[1729166448018,20.79,151.23,151.17,3.3081]
[1729166448019,3.3075,151.21,151.17,3.3081]
[1729166448317,3.3075,151.21,151.14,111.08647684]
[1729166450209,3.3075,151.21,151.17,3.3081]
[1729166451322,20.79,151.23,151.18,3.3081]
[1729166451518,3.3073,151.22,151.14,111.08647684]
[1729166451717,4.92,151.23,151.14,111.08647684]
[1729166451923,8.2272,151.23,151.16,3.3084]
[1729166452122,4.92,151.23,151.14,111.08647684]
[1729166452622,3.3073,151.22,151.18,3.3079]
[1729166454227,3.3076,151.21,151.14,111.08647684]
[1729166454822,3.3073,151.22,151.18,3.3079]
[1729166456830,4.92,151.23,151.18,3.3079]
[1729166457623,4.92,151.23,151.14,111.08647684]
[1729166457826,8.227,151.23,151.19,3.3078]
[1729166460533,4.92,151.23,151.14,111.08647684]
[1729166460724,15.87,151.22,151.17,3.3082]
[1729166461433,15.87,151.22,151.18,3.3079]
[1729166461733,19.1773,151.22,151.14,95.21647684]
[1729166462327,15.87,151.22,151.14,95.21647684]
[1729166463228,15.87,151.22,151.19,3.3077]
[1729166463530,19.1773,151.22,151.19,3.3077]
[1729166463839,15.87,151.22,151.19,3.3078]
[1729166464736,8.2272,151.23,151.19,3.3078]
[1729166464927,24.0972,151.23,151.19,3.3078]
[1729166466534,20.79,151.23,151.14,111.08647684]
[1729166466733,6.6094,151.34,151.2,15.87]
[1729166467037,20.79,151.3,151.26,3.3063]
[1729166467235,20.79,151.3,151.26,3.37249043]
[1729166467433,15.87,151.28,151.23,3.3069]
[1729166467735,3.3064,151.26,151.23,3.25304875]
[1729166467923,3.3064,151.26,151.21,2.853]
[1729166468928,3.3064,151.26,151.21,1.4571]
[1729166469129,3.3064,151.26,151.19,4.92]
[1729166469130,3.3069,151.24,151.19,4.92]
[1729166469331,20.77,151.26,151.19,4.92]
[1729166469534,20.77,151.26,151.21,3.3072]
[1729166469735,3.3067,151.25,151.21,3.3072]
[1729166470034,20.77,151.26,151.21,3.3072]
[1729166470238,3.3069,151.24,151.2,3.3075]
[1729166471132,19.1769,151.24,151.21,3.3074]
[1729166471436,19.1768,151.24,151.17,4.9]
[1729166471832,19.1768,151.24,151.2,3.3075]
[1729166472733,15.87,151.24,151.17,4.9]
[1729166472933,3.307,151.23,151.17,4.9]
[1729166473138,15.87,151.24,151.17,4.9]
[1729166473533,3.307,151.23,151.19,3.3077]
[1729166473837,3.307,151.23,151.17,4.9]
[1729166475336,3.307,151.23,151.19,3.3078]
[1729166475939,3.3076,151.21,151.17,3.3082]
[1729166476140,20.77,151.22,151.15,4.2387]
[1729166476335,20.77,151.22,151.15,2.7827]
[1729166476541,20.77,151.22,151.15,1.4337]
[1729166477041,3.3077,151.2,151.16,3.3084]
[1729166478240,3.308,151.19,151.15,3.3086]
[1729166478439,15.87,151.2,151.14,93.88427684]
[1729166479534,15.87,151.2,151.14,3.36024849]
[1729166479735,15.87,151.2,151.11,6.3194]
[1729166479945,3.3081,151.18,151.14,3.3089]
[1729166480138,3.3081,151.18,151.14,3.27035552]
[1729166480343,3.3081,151.18,151.11,6.3194]
[1729166480546,3.3081,151.18,151.13,3.3092]
[1729166480745,3.3081,151.18,151.13,3.23858843]
[1729166480946,15.87,151.2,151.11,6.3194]
[1729166481143,15.87,151.2,151.11,9.58578463]
[1729166481635,19.1778,151.2,151.16,3.3084]
[1729166483046,19.1778,151.2,151.15,3.3086]
[1729166483047,3.308,151.19,151.15,3.3086]
[1729166483348,3.308,151.19,151.11,9.58578463]
[1729166484745,15.87,151.18,151.11,3.26638463]
[1729166484940,3.3084,151.17,151.1,7.6918]
[1729166485152,3.3084,151.17,151.13,3.3091]
[1729166485353,3.3084,151.17,151.13,6.66637534]
[1729166485540,15.87,151.18,151.13,3.26527706]
[1729166485735,4.9,151.17,151.13,3.3091]
[1729166485936,15.87,151.18,151.13,6.62654916]
[1729166486143,8.2085,151.17,151.13,3.3091]
[1729166486444,4.9,151.17,151.13,3.29196088]
[1729166486637,3.3086,151.16,151.08,15.87]
[1729166486842,3.3086,151.16,151.13,3.3092]
[1729166487042,3.3086,151.16,151.13,6.57037633]
[1729166487243,4.9,151.17,151.13,6.57037633]
[1729166487444,8.2084,151.17,151.13,6.57037633]
[1729166488344,3.3087,151.16,151.13,6.57037633]
[1729166489251,3.3089,151.15,151.13,3.26117633]
[1729166489451,4.9,151.17,151.11,3.3095]
[1729166489750,3.309,151.14,151.11,3.3096]
[1729166489951,4.9,151.13,151.11,3.29637692]
[1729166490250,8.2093,151.13,151.1,3.3098]
[1729166490443,4.9,151.13,151.1,6.55487273]
[1729166491243,15.87,151.16,151.1,3.24507273]
[1729166491445,8.2088,151.15,151.06,20.77]
[1729166491648,15.87,151.16,151.06,20.77]
[1729166491851,4.9,151.15,151.06,20.77]
[1729166492150,8.2088,151.15,151.11,3.3095]
[1729166493651,8.2088,151.15,151.06,24.06538394]
[1729166493951,3.3091,151.14,151.06,24.06538394]
[1729166494148,15.87,151.14,151.06,3.29538394]
[1729166494452,15.87,151.16,151.06,15.87]
[1729166494649,4.9,151.15,151.11,3.3095]
[1729166494945,15.87,151.16,151.06,19.21624761]
[1729166495145,15.87,151.18,151.13,3.309]
[1729166495450,4.9,151.17,151.1,15.87]
[1729166495646,4.9,151.17,151.11,1.472]
[1729166495851,4.9,151.17,151.11,4.70427316]
[1729166496748,15.87,151.2,151.11,6.04677316]
[1729166496954,4.9,151.2,151.12,15.87]
[1729166498156,4.9,151.21,151.17,3.3082]
[1729166499851,4.9,151.21,151.12,15.87]
[1729166500457,4.9,151.21,151.18,3.3081]
[1729166502661,4.9,151.21,151.18,3.308]
[1729166503962,15.87,151.19,151.11,4.1541]
[1729166504262,15.87,151.19,151.11,7.40637133]
[1729166504462,19.1779,151.19,151.15,3.3086]
[1729166504763,15.87,151.21,151.13,4.94]
[1729166504958,4.94,151.21,151.15,3.3087]
[1729166505167,4.94,151.21,151.13,20.81]
[1729166505668,8.2475,151.21,151.17,3.3082]
[1729166505859,10.17,151.18,151.11,7.40637133]
[1729166506053,4.94,151.21,151.11,22.51637133]
[1729166506054,10.17,151.16,151.11,22.51637133]
[1729166506260,10.17,151.16,151.14,3.3088]
[1729166506866,10.17,151.16,151.15,3.3087]
[1729166508872,10.17,151.18,151.15,3.3087]
[1729166509365,10.17,151.18,151.17,3.3083]
[1729166509563,4.94,151.22,151.15,10.17]
[1729166509859,10.17,151.21,151.18,3.308]
[1729166510577,1.4262,151.23,151.2,3.3075]
[1729166510578,4.94,151.23,151.2,3.3075]
[1729166510866,15.11,151.23,151.2,6.66599037]
[1729166511061,15.11,151.23,151.2,3.3075]
[1729166511261,15.11,151.23,151.15,4.94]
[1729166511467,15.11,151.23,151.17,10.17]
[1729166511763,4.94,151.23,151.15,20.82]
[1729166512170,8.2472,151.23,151.2,3.3076]
[1729166512465,8.2472,151.23,151.2,6.59505855]
[1729166515064,4.94,151.23,151.2,6.59505855]
[1729166515265,3.3073,151.22,151.2,6.59505855]
[1729166516258,8.2471,151.23,151.2,6.59505855]
[1729166516873,8.2471,151.23,151.21,3.3074]
[1729166517071,4.94,151.25,151.2,3.28745855]
[1729166517272,4.94,151.25,151.22,3.3071]
[1729166517474,4.94,151.25,151.22,6.59212649]
[1729166517677,8.2467,151.25,151.22,6.59212649]
[1729166518475,3.3069,151.24,151.22,6.59212649]
[1729166518875,3.3069,151.24,151.22,3.28502649]
[1729166519075,3.3069,151.24,151.21,3.3073]
[1729166519473,8.2467,151.25,151.22,3.3071]
[1729166519674,4.94,151.25,151.22,3.3071]
[1729166520469,3.3068,151.24,151.22,3.3071]
[1729166520872,3.3068,151.24,151.21,6.62178217]
[1729166521071,15.88,151.24,151.21,3.31448217]
[1729166521373,15.88,151.24,151.17,2.6917]
[1729166521680,3.3072,151.23,151.17,2.6917]
[1729166522575,3.3073,151.22,151.19,3.3077]
[1729166522773,3.3073,151.22,151.19,6.53658766]
[1729166524079,88.7122,151.28,151.17,2.6917]
[1729166524080,15.88,151.28,151.2,20.82]
[1729166524377,2.7347,151.3,151.21,1.4368]
[1729166524378,20.82,151.3,151.21,1.4368]
[1729166524583,20.82,151.3,151.26,3.3062]
[1729166524584,3.3058,151.29,151.26,3.3062]
[1729166524875,3.3058,151.29,151.21,1.4368]
[1729166525270,20.82,151.32,151.22,15.88]
[1729166525477,3.3055,151.3,151.22,15.88]
[1729166525776,4.94,151.33,151.29,3.3057]
[1729166526283,174.7161,151.35,151.29,3.38140493]
[1729166526574,174.7161,151.35,151.3,4.94]
[1729166526784,174.7161,151.35,151.31,15.88]
[1729166527079,174.7161,151.35,151.34,19.1846]
[1729166527080,59.58215007,151.35,151.34,19.1846]
[1729166527275,2.8018,151.46,151.34,36.7]
[1729166527470,15.88,151.49,151.4,15.88]
[1729166527681,17.263,151.51,151.41,4.94]
[1729166527877,17.263,151.51,151.42,15.88]
[1729166528083,17.263,151.51,151.43,3.3024]
[1729166528391,17.263,151.51,151.42,15.88]
[1729166528392,1.383,151.51,151.42,15.88]
[1729166528984,4.94,151.52,151.44,15.88]
[1729166529176,15.88,151.55,151.46,15.88]
[1729166529486,15.88,151.55,151.47,4.94]
[1729166529689,15.88,151.55,151.46,15.88]
[1729166529883,15.88,151.55,151.47,5.0]
[1729166530189,15.88,151.57,151.47,20.88]
[1729166530381,15.88,151.56,151.47,20.88]
[1729166530688,15.88,151.56,151.47,5.0]
[1729166531181,15.88,151.59,151.48,15.88]
[1729166531379,15.88,151.59,151.48,19.21840549]
[1729166532284,3.2998,151.57,151.5,3.3009]
[1729166532483,15.88,151.59,151.51,4.98]
[1729166533078,15.88,151.56,151.48,3.33840549]
[1729166533285,15.88,151.53,151.49,4.98]
[1729166533485,15.88,151.53,151.49,8.23487107]
[1729166533786,19.1805,151.53,151.49,8.23487107]
[1729166534288,15.88,151.53,151.49,3.25487107]
[1729166534489,15.88,151.53,151.48,4.98]
[1729166534690,3.3009,151.51,151.48,3.26664646]
[1729166534878,15.88,151.49,151.45,4.98]
[1729166535078,15.88,151.49,151.43,4.98]
[1729166535388,3.3018,151.47,151.43,4.98]
[1729166535883,3.302,151.46,151.42,4.98]
[1729166536082,15.88,151.47,151.42,4.98]
[1729166536490,19.1818,151.47,151.42,4.98]
[1729166536683,19.1818,151.47,151.42,8.2073569]
[1729166536881,15.88,151.47,151.42,8.2073569]
[1729166537084,3.3016,151.48,151.43,3.3026]
[1729166537283,15.88,151.49,151.43,4.98]
[1729166537485,15.88,151.49,151.44,3.3024]
[1729166537883,29.4414,151.52,151.44,6.61790346]
[1729166538086,29.4414,151.52,151.44,3.3024]
[1729166538485,29.4414,151.52,151.44,6.53070552]
[1729166538677,3.3014,151.49,151.44,6.53070552]
[1729166539189,3.302,151.46,151.44,3.22830552]
[1729166539387,25.36,151.49,151.44,3.22830552]
[1729166539585,25.36,151.51,151.43,4.98]
[1729166539783,3.3014,151.49,151.43,8.32324826]
[1729166540286,3.3012,151.5,151.45,3.302]
[1729166540487,4.0814,151.52,151.43,33.68324826]
[1729166540894,3.3002,151.55,151.49,3.3012]
[1729166541100,4.98,151.58,151.49,4.98]
[1729166541594,3.2996,151.57,151.52,3.3005]
[1729166542290,3.2994,151.58,151.53,3.3003]
[1729166542789,3.2994,151.58,151.53,8.2803]
[1729166542996,3.2994,151.58,151.53,11.63378355]
[1729166543196,4.114,151.6,151.53,8.33348355]
[1729166543495,3.2997,151.57,151.53,8.33348355]
[1729166543691,4.114,151.6,151.53,8.33348355]
[1729166544092,3.2995,151.58,151.53,11.63378355]
[1729166544295,4.114,151.6,151.53,8.33348355]
[1729166544798,3.2998,151.56,151.53,8.33348355]
[1729166545589,3.2996,151.58,151.53,11.63378355]
[1729166545887,4.114,151.6,151.53,8.33348355]
[1729166546094,3.2994,151.58,151.54,3.3]
[1729166549799,3.2998,151.56,151.53,11.63388355]
[1729166550200,3.2997,151.57,151.53,11.63388355]
[1729166550699,4.114,151.6,151.53,11.63388355]
[1729166550897,3.2997,151.57,151.53,11.63388355]
[1729166551801,3.2998,151.56,151.53,11.63388355]
[1729166552800,4.114,151.6,151.53,11.63388355]
[1729166553001,4.114,151.6,151.54,3.3002]
[1729166553902,4.114,151.6,151.55,3.2998]
[1729166554105,4.114,151.6,151.53,8.33348355]
[1729166554500,25.36,151.59,151.53,3.35348355]
[1729166554700,25.36,151.59,151.5,4.98]
[1729166555897,3.3,151.55,151.52,3.3006]
[1729166556102,3.3,151.55,151.52,3.312655]
[1729166556304,4.114,151.6,151.5,4.98]
[1729166556600,3.2996,151.57,151.53,3.3002]
[1729166556794,3.2996,151.57,151.53,6.66908943]
[1729166556998,4.114,151.6,151.53,3.3002]
[1729166557600,4.114,151.6,151.53,6.63541374]
[1729166558296,4.114,151.6,151.53,3.33521374]
[1729166558506,4.114,151.6,151.53,15.85]
[1729166558803,4.114,151.6,151.54,4.98]
[1729166559006,3.2993,151.59,151.56,3.2998]
[1729166564206,1.3342,151.62,151.56,3.2997]
[1729166564800,3.2992,151.59,151.56,3.2997]
[1729166565212,1.3342,151.62,151.54,20.83]
[1729166565213,1.3342,151.62,151.58,3.2993]
[1729166565414,3.2991,151.6,151.54,20.83]
[1729166566119,3.2991,151.6,151.56,3.2997]
[1729166567217,3.2991,151.6,151.57,3.2996]
[1729166567419,3.2991,151.6,151.54,20.83]
[1729166567816,3.2991,151.6,151.57,3.2994]
[1729166569218,3.2988,151.61,151.56,15.85]
[1729166569915,3.2988,151.61,151.58,3.2992]
[1729166574318,3.2987,151.62,151.58,3.2992]
[1729166575017,3.2987,151.62,151.59,3.2991]
[1729166575520,20.85,151.66,151.58,20.85]
[1729166575724,3.2983,151.63,151.6,3.2988]
[1729166576820,3.2983,151.63,151.61,3.2987]
[1729166577025,3.2983,151.63,151.58,20.85]
[1729166577625,2.7799,151.67,151.58,20.85]
[1729166577825,2.7799,151.67,151.6,15.85]
[1729166577826,3.298,151.65,151.6,15.85]
[1729166578726,3.2979,151.65,151.61,3.2986]
[1729166578924,3.2979,151.65,151.61,6.67912553]
[1729166579127,3.2979,151.65,151.6,15.85]
[1729166579724,2.7799,151.67,151.6,15.85]
[1729166579927,3.2977,151.66,151.6,15.85]
[1729166580220,2.7799,151.67,151.6,15.85]
[1729166580221,1.3524,151.67,151.6,15.85]
[1729166580529,4.65,151.67,151.62,3.2985]
[1729166580730,1.3524,151.67,151.63,5.0]
[1729166581229,1.3524,151.67,151.63,8.26241104]
[1729166582315,4.6498,151.67,151.64,3.298]
[1729166583634,3.2976,151.66,151.63,11.56051104]
[1729166584432,4.6499,151.67,151.63,11.56051104]
[1729166585323,4.6499,151.67,151.64,3.298]
[1729166585529,3.2975,151.67,151.64,3.298]
[1729166585731,6.3723,151.71,151.64,15.85]
[1729166586030,6.3723,151.71,151.65,3.2977]
[1729166586623,3.2973,151.68,151.65,3.2977]
[1729166587433,36.38856095,151.84,151.66,15.85]
[1729166587633,17.223,151.77,151.67,20.85]
[1729166587935,17.223,151.77,151.65,3.35313058]
[1729166587936,15.85,151.75,151.68,5.0]
[1729166588136,15.85,151.75,151.68,8.2972]